fUSD/lending_fUSD_20250413
["ID","MTS","AMOUNT","RATE_DAILY","PERIOD"]
[357900260,1744539422883,-500.0,0.00019811,2]
[357900261,1744539422932,-200.0,0.00019829,2]
[357900262,1744539423171,-617.0,0.00019899,2]
[357900263,1744539423224,-12500.0,0.000199,2]
[357900264,1744539423280,-6079.15809812,0.000199,2]
[357900265,1744539423332,-4425.3581779,0.000199,2]
[357900266,1744539423387,-2031.46797998,0.000199,2]
[357900267,1744539423445,-500.0,0.00019973,2]
[357900268,1744539423500,-4048.2125293,0.00019986,2]
[357900269,1744539423552,-36074.8718473,0.00019986,2]
[357900270,1744539423605,-668.65185757,0.00019988,2]
[357900271,1744539423657,-207.4,0.00019988,2]
[357900272,1744539423711,-29142.78036066,0.0002,2]
[357900273,1744539423781,-3794446.15836882,0.0002,2]
[357900274,1744539423836,-243521.65698556,0.0002,2]
[357900275,1744539454505,167.651938,0.0003,30]
[357900276,1744539462921,5000.0,0.000319,120]
[357900277,1744539476080,1060.83,0.00017153,2]
[357900279,1744539529731,16053.00504212,0.000299,30]
[357900280,1744539559283,3946.99495788,0.000299,60]
[357900281,1744539602839,10000.0,0.000299,60]
[357900283,1744539784488,5000.0,0.000299,60]
[357900286,1744539901589,157.041319,0.00031,120]
[357900287,1744539928226,2112.57220619,0.00011,2]
[357900288,1744539954533,159.041319,0.00031,120]
[357900289,1744539955837,801.98879225,6.94e-05,2]
[357900290,1744539968021,1085.43900156,8e-05,2]
[357900291,1744539968048,1310.92947222,8e-05,2]
[357900293,1744540004662,187.79,0.00028479,120]
[357900294,1744540033470,1677.62456026,0.00015,2]
[357900295,1744540042116,-194.447494,0.00018563,2]
[357900296,1744540042138,-226.37107963,0.00018975,2]
[357900297,1744540044180,250.53929417,0.000101,2]
[357900298,1744540051529,321.28308662,0.0001,2]
[357900300,1744540081434,309.73961761,0.0001,2]
[357900317,1744540232273,-166.25,0.00018826,2]
[357900319,1744540232285,-513.88892037,0.00018975,2]
[357900320,1744540232298,-187.79,0.00018986,2]
[357900322,1744540232311,-218.02,0.00019042,2]
[357900323,1744540232322,-300.0,0.000191,6]
[357900324,1744540232334,-700.0,0.000192,7]
[357900325,1744540232346,-1100.0,0.000193,7]
[357900326,1744540232360,-614.3901586,0.00019399,2]
[357900327,1744540232372,-1500.0,0.000194,7]
[357900328,1744540232384,-1060.83,0.00019417,2]
[357900329,1744540232396,-1900.0,0.000195,7]
[357900330,1744540232409,-500.0,0.00019562,2]
[357900331,1744540232421,-300.0,0.000196,7]
[357900332,1744540232433,-300.0,0.000197,7]
[357900333,1744540232445,-1811.11,0.000197,2]
[357900334,1744540232456,-300.0,0.00019725,2]
[357900335,1744540232468,-300.0,0.000198,7]
[357900336,1744540232479,-593.60489835,0.00019811,2]
[357900337,1744540232491,-500.0,0.00019811,2]
[357900338,1744540232505,-195.2111188,0.00019811,2]
[357900339,1744540232517,-12500.0,0.00019812,2]
[357900340,1744540232529,-4438.90490388,0.00019821,2]
[357900366,1744540232822,-463.05392066,0.00019821,2]
[357900371,1744540232861,-1478.98127565,0.00019821,2]
[357900373,1744540232873,-6119.05989981,0.00019821,2]
[357900375,1744540232883,-12500.0,0.0001983,2]
[357900377,1744540232893,-12500.0,0.00019838,2]
[357900379,1744540232904,-12500.0,0.00019847,2]
[357900381,1744540232914,-12500.0,0.00019856,2]
[357900383,1744540232925,-12500.0,0.00019865,2]
[357900386,1744540232938,-12500.0,0.00019874,2]
[357900388,1744540232949,-6306.94789449,0.00019882,2]
[357900411,1744540238467,-313.0307519,0.00019882,2]
[357900412,1744540238480,-4070.42433121,0.00019882,2]
[357900413,1744540238529,-1809.5970224,0.00019882,2]
[357900414,1744540238541,-1997.2059776,0.00019891,2]
[357900415,1744540238651,-442.20931429,0.00019891,2]
[357900423,1744540240888,-983.09941013,0.00019891,2]
[357900424,1744540240969,-2885.90769575,0.00019891,2]
[357900425,1744540241029,-1619.4,0.00019891,2]
[357900462,1744540243437,-522.47985182,0.00019891,2]
[357900464,1744540245220,-1153.41270817,0.00019891,2]
[357900468,1744540246357,-2896.28504224,0.00019891,2]
[357900469,1744540246370,-550.24950446,0.000199,2]
[357900470,1744540246380,-197.9655133,0.000199,2]
[357900471,1744540246415,-1354.91980013,0.000199,2]
[357900472,1744540246428,-2242.81113981,0.000199,2]
[357900473,1744540246442,-727.52472323,0.000199,2]
[357900474,1744540246535,-884.76011493,0.000199,2]
[357900475,1744540246545,-4936.96148507,0.000199,2]
[357900476,1744540246591,-16.76291493,0.000199,2]
[357900477,1744540246600,-982.71269507,0.000199,2]
[357900478,1744540246612,-386.58460744,0.000199,2]
[357900479,1744540246624,-11130.70269749,0.000199,2]
[357900480,1744540246633,-328.37287909,0.000199,2]
[357900481,1744540246643,-300.0,0.000199,7]
[357900482,1744540246652,-194.09855862,0.000199,2]
[357900483,1744540246662,-2291.89780786,0.00019973,2]
[357900494,1744540268191,165.62581741,0.00031,120]
[357900495,1744540328352,400.80131436,0.00018,2]
[357900499,1744540439986,200.0,0.00018997,7]
[357900501,1744540562913,1044.12,0.0001705,2]
[357900526,1744541228124,-181.82,0.00018835,2]
[357900527,1744541228146,-250.0,0.0001886,2]
[357900528,1744541228168,-200.0,0.00018943,2]
[357900529,1744541228189,-158.03,0.00018968,2]
[357900530,1744541228211,-1000.0,0.00018974,2]
[357900531,1744541228231,-131.97683012,0.00018987,2]
[357900538,1744541378975,-150.0,0.00018894,2]
[357900539,1744541378998,-166.19,0.00018921,2]
[357900540,1744541379020,-26.05316988,0.00018987,2]
[357900541,1744541379041,-300.0,0.00018999,2]
[357900542,1744541379062,-633.25,0.00019,2]
[357900543,1744541379083,-633.25,0.00019,2]
[357900544,1744541379105,-633.25,0.00019,2]
[357900545,1744541379127,-633.25,0.00019,2]
[357900546,1744541379148,-633.25,0.00019,2]
[357900547,1744541379170,-250.0,0.00019,2]
[357900548,1744541379191,-158.03,0.00019006,2]
[357900549,1744541379212,-158.03,0.00019025,2]
[357900550,1744541379233,-158.03,0.00019044,2]
[357900551,1744541379253,-158.03,0.00019063,2]
[357900552,1744541379275,-1044.12,0.00019314,2]
[357900553,1744541379296,-166.67,0.00019382,2]
[357900554,1744541379316,-687.8260181,0.00019399,2]
[357900555,1744541379336,-1000.0,0.00019873,2]
[357900556,1744541379357,-2410.77081202,0.00019874,2]
[357900557,1744541380978,-250.0,0.00018867,2]
[357900558,1744541381001,-9750.0,0.00019874,2]
[357900559,1744541381867,-339.22918798,0.00019874,2]
[357900560,1744541381890,-9660.77081202,0.00019882,2]
[357900561,1744541382310,-2839.22918798,0.00019882,2]
[357900562,1744541382334,-1646.09531928,0.0001989,2]
[357900563,1744541382356,-171.69601906,0.0001989,2]
[357900564,1744541382377,-5342.97947368,0.0001989,2]
[357900565,1744541383048,-4416.69272632,0.0001989,2]
[357900566,1744541383070,-1646.09531921,0.00019891,2]
[357900567,1744541383091,-3937.21195447,0.00019891,2]
[357900568,1744541383723,-8562.78804553,0.00019891,2]
[357900569,1744541383746,-1437.21195447,0.00019892,2]
[357900570,1744541384339,-208.88336474,0.00019892,2]
[357900571,1744541384362,-1646.09531921,0.00019893,2]
[357900572,1744541384384,-1646.09531921,0.00019894,2]
[357900573,1744541384407,-1646.09531921,0.00019896,2]
[357900574,1744541384431,-1646.09531921,0.00019897,2]
[357900575,1744541384454,-1646.09531921,0.00019898,2]
[357900576,1744541384478,-1560.64003921,0.00019899,2]
[357900577,1744541410225,-528.15596525,0.00019178,2]
[357900578,1744541410251,-500.0,0.00019178,2]
[357900579,1744541410274,-530.46329354,0.00019178,2]
[357900580,1744541410297,-85.45528,0.00019899,2]
[357900581,1744541410320,-250.0,0.00019899,2]
[357900582,1744541410342,-328.76882112,0.000199,2]
[357900583,1744541410364,-590.64938088,0.000199,2]
[357900584,1744541410387,-1541.966,0.000199,2]
[357900585,1744541410410,-2407.54125921,0.000199,2]
[357900588,1744541431444,-303.16731841,0.00019178,2]
[357900589,1744541431455,-123.19912392,0.00019178,2]
[357900590,1744541431497,-392.96668532,0.00019178,2]
[357900591,1744541431508,-512.37,0.00019178,2]
[357900592,1744541431519,-512.5808697,0.00019178,2]
[357900593,1744541431531,-500.0,0.00019178,2]
[357900594,1744541431542,-642.2489222,0.00019178,2]
[357900595,1744541431553,-517.19040733,0.00019178,2]
[357900596,1744541431564,-500.0,0.00019178,2]
[357900597,1744541431575,-500.0,0.00019178,2]
[357900598,1744541431587,-500.0,0.00019178,2]
[357900599,1744541431598,-508.67109161,0.00019178,2]
[357900600,1744541431609,-515.8695136,0.00019399,2]
[357900601,1744541431620,-644.75,0.00019452,2]
[357900602,1744541431631,-3570.26800831,0.000199,2]
[357900603,1744541431644,-255.97559429,0.000199,2]
[357900604,1744541431658,-697.08410392,0.000199,2]
[357900605,1744541431670,-270.33973497,0.000199,2]
[357900606,1744541431681,-298.40740433,0.000199,2]
[357900607,1744541431692,-574.01311803,0.000199,2]
[357900608,1744541431704,-700.0,0.000199,2]
[357900609,1744541431715,-438.25924277,0.000199,2]
[357900610,1744541431726,-1315.05914698,0.000199,2]
[357900611,1744541431764,-1973.05238719,0.000199,2]
[357900612,1744541431773,-5615.04169463,0.000199,2]
[357900613,1744541431783,-1646.09531921,0.000199,2]
[357900648,1744541432083,-160.44220846,0.000199,2]
[357900654,1744541432110,-194.55527407,0.000199,2]
[357900658,1744541432124,-1064.13883972,0.00019973,2]
[357900661,1744541432136,-387.95208839,0.00019973,2]
[357900664,1744541432148,-779.1,0.00019973,2]
[357900668,1744541432160,-450.0,0.00019973,2]
[357900671,1744541432171,-503.4735659,0.00019973,2]
[357900674,1744541432183,-310.31,0.00019973,2]
[357900821,1744541437889,-377.58785162,0.00019178,2]
[357900822,1744541437905,-122.41214838,0.00019178,2]
[357900823,1744541437915,-504.67178499,0.00019178,2]
[357900824,1744541437925,-518.68994794,0.00019178,2]
[357900825,1744541437935,-498.65835257,0.00019178,2]
[357900826,1744541437948,-1.34164743,0.00019178,2]
[357900827,1744541437958,-401.89984432,0.00019973,2]
[357900828,1744541438066,-1903.46099217,0.00019973,2]
[357900829,1744541438078,-276.76686164,0.00019973,2]
[357900830,1744541438087,-692.0,0.00019973,2]
[357900831,1744541438097,-500.0,0.00019973,2]
[357900832,1744541438108,-283.56292639,0.00019973,2]
[357900833,1744541438120,-158.0,0.00019973,2]
[357900834,1744541438130,-158.0,0.00019973,2]
[357900835,1744541438139,-170.84579128,0.00019973,2]
[357900836,1744541438149,-7852.59907676,0.00019988,2]
[357900837,1744541438160,-1611.60231431,0.00019988,2]
[357900842,1744541440197,-584.44958707,0.00019988,2]
[357900843,1744541440207,-1032.41205167,0.00019988,2]
[357900844,1744541440217,-207.4,0.00019988,2]
[357900845,1744541440228,-2393.27851592,0.0001999,2]
[357900846,1744541440240,-1033.23521118,0.0001999,2]
[357900847,1744541440252,-1740.0911033,0.0001999,2]
[357900848,1744541440264,-1199.30233872,0.0001999,2]
[357900849,1744541440276,-927.27229506,0.0001999,2]
[357900850,1744541440288,-1269.64107533,0.0001999,2]
[357900851,1744541440300,-839.40658242,0.0001999,2]
[357900862,1744541443912,-555.11294205,0.00019178,2]
[357900863,1744541443922,-5169.16305841,0.0001999,2]
[357900864,1744541443932,-1766.20046054,0.0001999,3]
[357900865,1744541443944,-402.0340627,0.0001999,3]
[357900866,1744541443958,-2831.76547676,0.0001999,3]
[357900867,1744541443968,-5000.0,0.0001999,4]
[357900868,1744541443977,-7550.0,0.0001999,2]
[357900869,1744541443986,-4386.0,0.0001999,5]
[357900870,1744541443995,-35146.71328136,0.0001999,2]
[357900874,1744541445526,-933.14790751,0.0001999,2]
[357900875,1744541445538,-4794.10916932,0.0001999,2]
[357900876,1744541445633,-264.38400004,0.0001999,2]
[357900877,1744541445804,-495.71226737,0.0001999,2]
[357900878,1744541445821,-2324.29556668,0.0001999,2]
[357900879,1744541445832,-2712.33681569,0.0001999,2]
[357900881,1744541449987,4300.0,0.000185,3]
[357900887,1744541826444,1006.86,0.00017016,2]
[357900892,1744542002928,350.0,0.0001897,12]
[357900893,1744542067873,160.816123,7.945e-05,2]
[357900899,1744542442123,-153.55,0.00018745,2]
[357900900,1744542442145,-38.63268301,0.00018749,2]
[357900903,1744542560276,-160.52535,0.00018263,2]
[357900909,1744542631639,-839.47465,0.00018263,2]
[357900910,1744542631649,-250.0,0.00018508,2]
[357900911,1744542631659,-121.09529702,0.00018753,2]
[357900912,1744542631671,-32.45470298,0.00018753,2]
[357900913,1744542631681,-153.55,0.00018761,2]
[357900914,1744542631691,-153.55,0.00018768,2]
[357900915,1744542631700,-153.55,0.00018776,2]
[357900916,1744542631710,-39.45213929,0.00018784,2]
[357900917,1744542631721,-114.09786071,0.00018784,2]
[357900918,1744542631730,-153.55,0.00018792,2]
[357900919,1744542631740,-153.55,0.000188,2]
[357900920,1744542631749,-153.55,0.00018807,2]
[357900921,1744542631758,-153.55,0.00018815,2]
[357900922,1744542631768,-153.55,0.00018823,2]
[357900923,1744542631778,-153.55,0.00018831,2]
[357900924,1744542631787,-153.55,0.00018839,2]
[357900925,1744542631796,-250.0,0.00018965,2]
[357900926,1744542631806,-178.27,0.00018974,2]
[357900927,1744542631815,-200.0,0.00018975,2]
[357900928,1744542631825,-250.0,0.00019,2]
[357900929,1744542631835,-3.33868039,0.00019177,2]
[357900930,1744542631847,-595.66131961,0.00019177,2]
[357900931,1744542631856,-46.34313322,0.00019177,2]
[357900932,1744542631868,-253.65686678,0.00019177,2]
[357900933,1744542631877,-505.65946452,0.00019178,2]
[357900934,1744542631886,-500.0,0.00019178,2]
[357900935,1744542631896,-150.0,0.00019178,2]
[357900936,1744542631905,-500.0,0.00019178,2]
[357900937,1744542631914,-370.4936687,0.00019178,2]
[357900938,1744542631926,-129.5063313,0.00019178,2]
[357900939,1744542631936,-363.06015751,0.00019178,2]
[357900940,1744542631953,-136.93984249,0.00019178,2]
[357900941,1744542631963,-220.22820044,0.00019178,2]
[357900943,1744542631972,-96.58537122,0.00019178,2]
[357900945,1744542631983,-403.41462878,0.00019178,2]
[357900947,1744542631993,-208.53471211,0.00019178,2]
[357900981,1744542637957,-291.46528789,0.00019178,2]
[357900982,1744542637967,-501.66471211,0.00019178,2]
[357900983,1744542638012,-12.71049107,0.00019178,2]
[357900984,1744542638022,-500.37313452,0.00019178,2]
[357900985,1744542638032,-525.47567986,0.00019178,2]
[357900986,1744542638042,-500.0,0.00019178,2]
[357900987,1744542638051,-510.49973945,0.00019178,2]
[357900988,1744542638061,-50.21017714,0.00019178,2]
[357900989,1744542638073,-540.48873926,0.00019178,2]
[357900990,1744542638083,-501.53,0.00019178,2]
[357900991,1744542638093,-518.62420354,0.00019178,2]
[357900992,1744542638103,-530.03771729,0.00019178,2]
[357900993,1744542638112,-522.95816336,0.00019178,2]
[357900994,1744542638121,-518.64255107,0.00019178,2]
[357900995,1744542638131,-533.63868869,0.00019178,2]
[357900996,1744542638140,-523.08068355,0.00019178,2]
[357900997,1744542638150,-512.38412482,0.00019178,2]
[357900998,1744542638159,-500.0,0.00019178,2]
[357900999,1744542638169,-500.0,0.00019178,2]
[357901000,1744542638179,-570.6,0.00019178,2]
[357901001,1744542638188,-549.90832631,0.00019178,2]
[357901002,1744542638197,-521.87739601,0.00019178,2]
[357901003,1744542638207,-331.68281838,0.00019178,2]
[357901004,1744542638217,-536.41165574,0.00019178,2]
[357901005,1744542638227,-517.58888842,0.00019178,2]
[357901006,1744542638240,-517.03349081,0.00019178,2]
[357901007,1744542638250,-510.79950112,0.00019178,2]
[357901008,1744542638259,-512.4210927,0.00019178,2]
[357901009,1744542638269,-515.2677166,0.00019178,2]
[357901011,1744542638280,-495.29698058,0.00019178,2]
[357901013,1744542638289,-512.68931907,0.00019178,2]
[357901015,1744542638299,-504.92606505,0.00019178,2]
[357901017,1744542638308,-563.93852755,0.00019178,2]
[357901019,1744542638320,-500.0,0.00019178,2]
[357901021,1744542638331,-506.31879063,0.00019178,2]
[357901022,1744542638340,-500.0,0.00019178,2]
[357901025,1744542638351,-500.0,0.00019178,2]
[357901026,1744542638361,-500.0,0.00019178,2]
[357901028,1744542638370,-500.0,0.00019178,2]
[357901030,1744542638380,-504.84925517,0.00019178,2]
[357901032,1744542638389,-507.26047739,0.00019178,2]
[357901034,1744542638398,-516.71867101,0.00019178,2]
[357901036,1744542638409,-500.0,0.00019178,2]
[357901038,1744542638419,-543.67758767,0.00019178,2]
[357901040,1744542638428,-500.0,0.00019178,2]
[357901042,1744542638438,-500.0,0.00019178,2]
[357901044,1744542638447,-511.83402916,0.00019178,2]
[357901046,1744542638457,-540.33180373,0.00019178,2]
[357901048,1744542638467,-515.3876874,0.00019178,2]
[357901050,1744542638476,-619.17505665,0.00019178,2]
[357901052,1744542638486,-508.04935474,0.00019178,2]
[357901054,1744542638495,-529.51589923,0.00019178,2]
[357901056,1744542638505,-509.02177371,0.00019178,2]
[357901058,1744542638514,-608.26,0.00019178,2]
[357901060,1744542638523,-519.43857989,0.00019178,2]
[357901062,1744542638532,-351.17877924,0.00019178,2]
[357901064,1744542638542,-641.66,0.00019178,2]
[357901066,1744542638551,-647.41895144,0.00019178,2]
[357901068,1744542638562,-567.24031332,0.00019178,2]
[357901070,1744542638571,-500.0,0.00019178,2]
[357901072,1744542638580,-519.04197718,0.00019178,2]
[357901074,1744542638590,-521.28283803,0.00019178,2]
[357901076,1744542638599,-500.0,0.00019178,2]
[357901078,1744542638608,-519.2377555,0.00019178,2]
[357901080,1744542638620,-606.96,0.00019178,2]
[357901082,1744542638634,-500.0,0.00019178,2]
[357901084,1744542638646,-500.0,0.00019178,2]
[357901086,1744542638658,-500.0,0.00019178,2]
[357901088,1744542638667,-1059.77000673,0.00019178,2]
[357901090,1744542638680,-195.38999327,0.00019178,2]
[357901092,1744542638691,-500.0,0.00019178,2]
[357901094,1744542638702,-500.0,0.00019178,2]
[357901096,1744542638712,-500.0,0.00019178,2]
[357901098,1744542638722,-500.0,0.00019178,2]
[357901100,1744542638732,-500.0,0.00019178,2]
[357901102,1744542638742,-570.23,0.00019178,2]
[357901104,1744542638752,-500.0,0.00019178,2]
[357901106,1744542638762,-635.70673905,0.00019178,2]
[357901108,1744542638772,-200.0,0.00019178,2]
[357901110,1744542638781,-500.0,0.00019178,2]
[357901112,1744542638790,-500.0,0.00019178,2]
[357901114,1744542638801,-157.19353177,0.00019178,2]
[357901116,1744542638810,-500.0,0.00019178,2]
[357901118,1744542638819,-500.0,0.00019178,2]
[357901120,1744542638828,-520.4345246,0.00019178,2]
[357901122,1744542638837,-500.0,0.00019178,2]
[357901124,1744542638845,-500.0,0.00019178,2]
[357901126,1744542638855,-500.0,0.00019178,2]
[357901128,1744542638864,-500.0,0.00019178,2]
[357901130,1744542638873,-500.0,0.00019178,2]
[357901132,1744542638883,-500.0,0.00019178,2]
[357901134,1744542638892,-500.0,0.00019178,2]
[357901136,1744542638901,-500.0,0.00019178,2]
[357901138,1744542638910,-521.8067056,0.00019178,2]
[357901140,1744542638919,-500.0,0.00019178,2]
[357901141,1744542638928,-500.0,0.00019178,2]
[357901143,1744542638937,-500.0,0.00019178,2]
[357901145,1744542638946,-500.0,0.00019178,2]
[357901147,1744542638955,-500.0,0.00019178,2]
[357901149,1744542638964,-500.0,0.00019178,2]
[357901151,1744542638973,-511.94783825,0.00019178,2]
[357901153,1744542638982,-500.0,0.00019178,2]
[357901155,1744542638991,-500.0,0.00019178,2]
[357901157,1744542639000,-513.16837246,0.00019178,2]
[357901159,1744542639009,-326.43394485,0.00019178,2]
[357901161,1744542639019,-608.49,0.00019178,2]
[357901163,1744542639028,-500.97685524,0.00019178,2]
[357901165,1744542639037,-533.01371426,0.00019178,2]
[357901167,1744542639046,-500.0,0.00019178,2]
[357901169,1744542639056,-500.0,0.00019178,2]
[357901171,1744542639065,-616.9,0.00019178,2]
[357901173,1744542639074,-500.0,0.00019178,2]
[357901175,1744542639084,-500.0,0.00019178,2]
[357901177,1744542639093,-500.0,0.00019178,2]
[357901179,1744542639102,-500.0,0.00019178,2]
[357901181,1744542639112,-500.0,0.00019178,2]
[357901183,1744542639122,-500.0,0.00019178,2]
[357901185,1744542639131,-500.0,0.00019178,2]
[357901187,1744542639140,-500.0,0.00019178,2]
[357901189,1744542639150,-629.32,0.00019178,2]
[357901191,1744542639159,-500.0,0.00019178,2]
[357901193,1744542639168,-500.0,0.00019178,2]
[357901195,1744542639178,-169.90786973,0.00019178,2]
[357901253,1744542639853,-330.09213027,0.00019178,2]
[357901254,1744542639862,-455.12809511,0.00019178,2]
[357901267,1744542640011,-44.87190489,0.00019178,2]
[357901269,1744542640020,-253.38898957,0.00019178,2]
[357901399,1744542645819,-246.61101043,0.00019178,2]
[357901400,1744542645829,-500.0,0.00019178,2]
[357901401,1744542645838,-500.0,0.00019178,2]
[357901402,1744542645848,-560.95,0.00019178,2]
[357901403,1744542645858,-918.56,0.00019178,2]
[357901404,1744542645867,-500.0,0.00019178,2]
[357901405,1744542645876,-500.0,0.00019178,2]
[357901406,1744542645885,-500.0,0.00019178,2]
[357901407,1744542645894,-561.77,0.00019178,2]
[357901408,1744542645903,-500.0,0.00019178,2]
[357901409,1744542645913,-500.0,0.00019178,2]
[357901410,1744542645922,-500.0,0.00019178,2]
[357901411,1744542645932,-500.0,0.00019178,2]
[357901412,1744542645942,-500.0,0.00019178,2]
[357901413,1744542645951,-500.0,0.00019178,2]
[357901414,1744542645961,-500.0,0.00019178,2]
[357901415,1744542645970,-502.21617856,0.00019178,2]
[357901416,1744542645979,-514.98,0.00019178,2]
[357901417,1744542645988,-500.0,0.00019178,2]
[357901418,1744542645998,-500.0,0.00019178,2]
[357901419,1744542646008,-500.0,0.00019178,2]
[357901420,1744542646017,-22849.87856287,0.00019178,2]
[357901421,1744542646028,-258.3025,0.00019178,2]
[357901427,1744542831281,998.39,0.00016751,2]
[357901430,1744542842467,350.0,0.00018859,12]
[357901432,1744543387885,20662.39,0.0003,60]
[357901433,1744543435391,3072.108627,0.0003,60]
[357901435,1744543447725,161.28,0.00014505,2]
[357901436,1744543528673,1650.39820993,0.00011,2]
[357901438,1744543576059,152.52,0.00017948,2]
[357901439,1744543636098,-153.13,0.00018152,2]
[357901440,1744543636120,-153.13,0.00018167,2]
[357901441,1744543636142,-153.13,0.00018182,2]
[357901442,1744543636163,-153.13,0.00018197,2]
[357901443,1744543636184,-153.13,0.00018212,2]
[357901444,1744543636205,-153.13,0.00018227,2]
[357901445,1744543636226,-153.13,0.00018242,2]
[357901446,1744543636246,-200.0,0.00018277,2]
[357901447,1744543636266,-224.42229295,0.00018292,2]
[357901448,1744543636287,-250.0,0.00018334,2]
[357901449,1744543636308,-224.42229294,0.00018392,2]
[357901450,1744543636328,-2110.68216229,0.00018486,2]
[357901456,1744543731053,15266.53383425,0.00013368,2]
[357901457,1744543731097,4000.0,0.00013368,2]
[357901458,1744543731122,4639.0,0.00013368,2]
[357901459,1744543731146,10000.0,0.00013368,2]
[357901460,1744543731168,8575.04458537,0.00013368,2]
[357901500,1744543831828,-150.0,0.00018248,2]
[357901501,1744543831840,-379.44202323,0.0001826,2]
[357901502,1744543831851,-620.55797677,0.0001826,2]
[357901503,1744543831861,-194.54,0.00018272,2]
[357901504,1744543831871,-165.73628964,0.00018392,2]
[357901505,1744543831882,-14.3336854,0.00018392,2]
[357901506,1744543831892,-180.06997503,0.00018443,2]
[357901507,1744543831902,-310.26239957,0.00018486,2]
[357901508,1744543831940,-1342.33543814,0.00018486,2]
[357901509,1744543831950,-169.07,0.00018492,2]
[357901510,1744543831959,-180.06997503,0.00018494,2]
[357901511,1744543831968,-321.44459883,0.00018504,2]
[357901512,1744543831979,-261.52658396,0.00018504,2]
[357901513,1744543831988,-221.67165284,0.00018504,2]
[357901514,1744543831997,-4992.03595654,0.00018505,2]
[357901515,1744543832048,-254.54092575,0.00018505,2]
[357901516,1744543832104,-11053.72311771,0.00018505,2]
[357901517,1744543832114,-23900.0,0.00018511,2]
[357901518,1744543832125,-500.0,0.00018521,2]
[357901519,1744543832135,-4700.34,0.00018546,2]
[357901520,1744543832144,-194.447494,0.00018563,2]
[357901521,1744543832154,-150.0,0.0001858,2]
[357901522,1744543832164,-5282.13,0.00018581,2]
[357901523,1744543832174,-250.0,0.00018594,2]
[357901524,1744543832183,-273.16,0.00018597,2]
[357901525,1744543832192,-1852.42,0.00018605,2]
[357901526,1744543832202,-200.0,0.0001862,2]
[357901527,1744543832211,-166.66,0.00018674,2]
[357901529,1744543832220,-250.0,0.00018679,2]
[357901531,1744543832229,-160.14,0.000187,2]
[357901533,1744543832238,-446.68,0.000188,2]
[357901535,1744543832247,-160.14,0.000188,2]
[357901537,1744543832256,-150.0,0.000188,2]
[357901539,1744543832265,-446.68,0.000188,2]
[357901541,1744543832274,-160.14,0.000188,2]
[357901542,1744543832284,-446.68,0.000188,2]
[357901544,1744543832293,-160.14,0.000188,2]
[357901546,1744543832302,-160.14,0.000188,2]
[357901548,1744543832311,-160.14,0.000188,2]
[357901549,1744543832320,-160.14,0.000188,2]
[357901550,1744543832328,-160.14,0.000188,2]
[357901551,1744543832338,-160.14,0.000188,2]
[357901552,1744543832347,-160.14,0.000188,2]
[357901553,1744543832355,-160.14,0.000188,2]
[357901554,1744543832364,-500.0,0.00018877,2]
[357901555,1744543832373,-160.14,0.00018878,2]
[357901556,1744543832383,-160.14,0.00018878,2]
[357901557,1744543832392,-242.49,0.00019,2]
[357901558,1744543832402,-242.49,0.00019,2]
[357901559,1744543832410,-242.49,0.00019,2]
[357901560,1744543832419,-242.49,0.00019,2]
[357901561,1744543832428,-242.49,0.00019,2]
[357901562,1744543832438,-150.0,0.00019,2]
[357901563,1744543832447,-446.68,0.00019,2]
[357901564,1744543832456,-349.09,0.00019,2]
[357901565,1744543832465,-150.0,0.00019,2]